bitfinex-derivatives/quotes_SOLF0:USTF0_20260217
["timestamp","ask_amount","ask_price","bid_price","bid_amount"]
[1771371470394,80.9,85.037,84.999,3.8175145]
[1771371470697,10.5875,85.053,85.011,3.8175145]
[1771371470997,1.21129952,85.059,85.021,3.8175145]
[1771371472094,1.21129952,85.059,85.022,3.8175145]
[1771371472398,1.21129952,85.059,84.998,21.94903828]
[1771371472399,80.9,85.067,85.031,3.8175145]
[1771371472797,1.18368421,85.066,85.031,3.8175145]
[1771371473993,1.14511777,85.049,85.01,1.99342653]
[1771371474199,1.14511777,85.029,84.983,3.89483705]
[1771371475700,11.71930829,85.025,84.983,3.89483705]
[1771371476098,1.12840829,85.024,84.983,3.89483705]
[1771371477001,1.12840829,85.024,84.987,3.89483705]
[1771371478200,10.5914,85.022,84.987,3.89483705]
[1771371478394,1.99342653,85.02,84.987,3.89483705]
[1771371479901,10.5917,85.019,84.987,3.89483705]
[1771371480696,1.20350421,85.018,84.976,3.89483705]
[1771371481003,1.99342653,85.01,84.976,3.89483705]
[1771371481195,1.99342653,85.02,84.976,3.89483705]
[1771371481598,1.99342653,85.02,84.978,3.89483705]
[1771371486003,1.99343618,85.02,84.978,3.89483705]
[1771371488307,1.17917441,85.009,84.968,3.89483705]
[1771371489408,1.17917441,84.999,84.951,3.89483705]
[1771371489610,1.99343618,84.99,84.951,3.89483705]
[1771371490207,74.1,85.01,84.928,74.1]
[1771371490208,1.99343618,84.98,84.945,10.6008]
[1771371490402,1.99343618,84.97,84.931,3.89483705]
[1771371490710,1.99343618,84.96,84.919,3.89483705]
[1771371490909,1.99343618,84.95,84.919,3.89483705]
[1771371492710,1.99343618,84.95,84.893,88.73266854]
[1771371492711,1.99343618,84.94,84.906,14.50043705]
[1771371492906,1.99343618,84.94,84.906,3.89483705]
[1771371493310,1.99343618,84.93,84.906,3.89483705]
[1771371493708,1.0151491,84.949,84.906,3.89483705]
[1771371493709,1.99343618,84.94,84.906,3.89483705]
[1771371495310,1.99343618,84.93,84.906,3.89483705]
[1771371495506,1.99343618,84.93,84.878,74.1]
[1771371495507,1.99343618,84.92,84.892,3.85887213]
[1771371495909,1.99343618,84.93,84.892,3.85887213]
[1771371497507,1.99343618,84.93,84.897,10.6068]
[1771371497713,1.99343618,84.94,84.898,3.85887213]
[1771371497910,1.99343618,84.95,84.901,3.85887213]
[1771371498813,1.99343618,84.95,84.909,3.85887213]
[1771371499910,1.99343618,84.94,84.909,3.85887213]
[1771371502915,1.99343618,84.94,84.911,3.85887213]
[1771371503918,1.99343618,84.94,84.913,3.85887213]
[1771371506019,1.99343618,84.95,84.913,3.85887213]
[1771371507222,1.99343618,84.95,84.917,3.85887213]
[1771371508718,1.99343618,84.95,84.918,14.46297213]
[1771371514224,1.99343618,84.95,84.918,3.85887213]
[1771371515224,1.05062449,84.949,84.918,3.85887213]
[1771371517031,1.05062449,84.949,84.921,10.6039]
[1771371518523,1.05062449,84.949,84.918,3.85887213]
[1771371519130,1.99343618,84.94,84.918,3.85887213]
[1771371519434,1.04555849,84.929,84.881,3.85887213]
[1771371519630,1.99343618,84.91,84.87,3.85887213]
[1771371520132,1.05281396,84.919,84.877,3.85887213]
[1771371521834,1.05281396,84.919,84.878,3.85887213]
[1771371522736,1.05281396,84.919,84.881,14.46767213]
[1771371523033,1.99343618,84.91,84.881,14.46767213]
[1771371524935,1.05281396,84.919,84.881,14.46767213]
[1771371525637,1.05281396,84.919,84.882,3.74631846]
[1771371526537,11.65691396,84.919,84.882,3.74631846]
[1771371527540,10.6041,84.919,84.882,3.74631846]
[1771371530143,10.6029,84.929,84.882,3.74631846]
[1771371532440,10.6037,84.923,84.882,3.74631846]
[1771371532641,1.99343618,84.92,84.882,3.74631846]
[1771371533638,10.6043,84.918,84.882,3.74631846]
[1771371537345,21.1975,84.963,84.892,3.57570653]
[1771371537346,1.99343618,84.94,84.892,3.57570653]
[1771371537546,3.25206327,84.94,84.892,3.57570653]
[1771371538041,10.6012,84.943,84.911,3.57570653]
[1771371538442,1.25862709,84.954,84.911,3.57570653]
[1771371538443,10.6001,84.952,84.911,3.57570653]
[1771371539245,10.6008,84.946,84.911,3.57570653]
[1771371540542,1.99343618,84.96,84.911,3.57570653]
[1771371540746,1.99343618,84.96,84.921,3.57570653]
[1771371541345,1.99343618,84.96,84.912,14.55388415]
[1771371541346,1.1603013,84.956,84.912,14.55388415]
[1771371541647,1.1603013,84.949,84.907,3.57570653]
[1771371542144,74.12,84.992,84.89,74.12]
[1771371542145,1.99343618,84.96,84.911,3.57570653]
[1771371542350,3.26952579,84.96,84.911,3.57570653]
[1771371542850,1.27608961,84.959,84.911,3.57570653]
[1771371543252,1.99343618,84.96,84.911,3.57570653]
[1771371543646,10.5999,84.954,84.911,3.57570653]
[1771371546951,1.99618949,84.96,84.915,3.57570653]
[1771371547855,3.29019478,84.96,84.915,3.57570653]
[1771371548056,10.5992,84.959,84.915,3.57570653]
[1771371548249,11.89320529,84.959,84.915,3.57570653]
[1771371549858,1.29400529,84.959,84.915,3.57570653]
[1771371553864,1.99618949,84.95,84.915,3.57570653]
[1771371555563,1.31079498,84.955,84.917,3.74624963]
[1771371557664,1.99618949,84.95,84.917,3.74624963]
[1771371558066,1.31079498,84.955,84.919,3.74624963]
[1771371558364,1.99618949,84.96,84.919,3.74624963]
[1771371558760,3.3256518,84.96,84.919,3.74624963]
[1771371559759,3.3256518,84.96,84.921,3.74624963]
[1771371562269,10.5992,84.959,84.921,3.74624963]
[1771371563270,1.36054123,84.958,84.921,3.74624963]
[1771371564873,1.36054123,84.958,84.923,3.74624963]
[1771371567275,10.5995,84.956,84.923,3.74624963]
[1771371571278,11.97511592,84.956,84.923,3.74624963]
[1771371574182,10.6001,84.952,84.923,3.74624963]
[1771371580984,1.37965182,84.955,84.923,3.74624963]
[1771371582283,1.37965182,84.955,84.923,18.30013378]
[1771371583280,1.37965182,84.955,84.924,14.55388415]
[1771371584384,1.37965182,84.955,84.925,14.55388415]
[1771371585187,1.37965182,84.955,84.926,3.84347946]
[1771371586388,1.37965182,84.955,84.926,18.39736361]
[1771371586689,1.37965182,84.955,84.927,3.84347946]
[1771371587994,10.5977,84.971,84.927,3.84347946]
[1771371588188,1.40741845,84.988,84.95,3.84347946]
[1771371588491,1.40741845,84.969,84.936,14.55388415]
[1771371589292,1.40741845,84.969,84.93,1.99618949]
[1771371589293,1.40741845,84.969,84.935,14.55388415]
[1771371589795,10.598,84.968,84.935,14.55388415]
[1771371590091,1.46527861,84.967,84.935,14.55388415]
[1771371591294,1.46527861,84.967,84.934,14.55388415]
[1771371592796,1.46527861,84.967,84.934,18.39736361]
[1771371593296,1.46527861,84.967,84.934,3.84347946]
[1771371595496,1.46527861,84.967,84.935,3.76299148]
[1771371598693,1.46527861,84.967,84.933,14.55388415]
[1771371598897,14.63231197,85.023,84.857,50.91132335]
[1771371598898,1.53287855,84.949,84.92,14.55388415]
[1771371599096,1.53287855,84.949,84.914,14.55388415]
[1771371599797,1.52648526,84.959,84.915,3.76299148]
[1771371599998,1.52648526,84.97,84.932,3.76299148]
[1771371600194,1.52648526,84.97,84.933,3.76299148]
[1771371600396,1.52648526,84.982,84.941,3.76299148]
[1771371601801,1.52648526,84.982,84.944,3.76299148]
[1771371602001,1.52648526,84.982,84.945,3.76299148]
[1771371602698,252.75388339,84.991,84.951,3.76299148]
[1771371602902,254.41083149,84.991,84.951,3.76299148]
[1771371603603,1.6569481,84.991,84.951,3.76299148]
[1771371604902,1.66512348,85.002,84.961,3.76299148]
[1771371606804,10.5939,85.001,84.961,3.76299148]
[1771371607702,10.5939,85.001,84.961,10.5988]
[1771371607901,1.99618949,85.01,84.96,1.99618949]
[1771371607902,10.5931,85.008,84.962,3.76299148]
[1771371608103,10.5931,85.008,84.971,3.76299148]
[1771371609801,1.65462819,85.013,84.971,3.76299148]
[1771371610001,1.65462819,85.013,84.97,1.99375319]
[1771371610002,1.65462819,85.013,84.973,3.76299148]
[1771371611702,1.65462819,85.013,84.975,3.76299148]
[1771371612312,1.65462819,85.013,84.977,3.76299148]
[1771371615312,1.99375319,85.01,84.977,3.76299148]
[1771371616308,1.99375319,85.01,84.979,14.38136185]
[1771371616512,1.99375319,85.03,84.981,3.78476185]
[1771371617117,1.99375319,85.03,84.991,3.78476185]
[1771371617810,1.99375319,85.03,84.998,3.78476185]
[1771371618209,1.64795805,85.038,84.998,3.78476185]
[1771371618514,1.71194461,85.048,85.007,10.5931]
[1771371618718,1.71194461,85.048,85.0,1.99375319]
[1771371618719,1.71194461,85.058,85.011,3.78476185]
[1771371619520,1.71194461,85.055,85.015,3.78476185]
[1771371621620,1.71194461,85.055,85.017,3.78476185]
[1771371623821,1.71194461,85.055,85.022,3.78476185]
[1771371624124,12.31883978,85.065,85.022,3.78476185]
[1771371624322,1.99375319,85.07,85.022,3.78476185]
[1771371625621,3.72659297,85.07,85.022,3.78476185]
[1771371625821,1.65900456,85.069,85.027,3.78476185]
[1771371630323,12.22416673,85.068,85.027,3.78476185]
[1771371630518,1.63856673,85.067,85.027,3.78476185]
[1771371635427,1.99375319,85.06,85.027,3.78476185]
[1771371640422,3.69171692,85.05,85.001,3.78476185]
[1771371641826,3.69171692,85.05,85.012,3.78476185]
[1771371643728,3.69171692,85.05,85.015,3.78476185]
[1771371651834,3.69171692,85.05,84.988,74.08]
[1771371651835,1.99375319,85.05,85.018,3.79731207]
[1771371652133,10.5868,85.059,85.018,3.79731207]
[1771371652824,10.5868,85.059,85.022,3.79731207]
[1771371653026,10.5874,85.054,85.022,3.79731207]
[1771371659831,12.58035319,85.06,85.022,3.79731207]
[1771371660433,1.99375319,85.06,85.026,3.70094422]
[1771371660633,10.5858,85.067,85.026,3.70094422]
[1771371661032,3.68739608,85.07,85.026,3.70094422]
[1771371661336,1.69364289,85.07,85.031,3.70094422]
[1771371661531,3.66571585,85.06,85.025,3.70094422]
[1771371661731,1.67196266,85.059,85.025,3.70094422]
[1771371661931,1.99375319,85.05,85.025,3.70094422]
[1771371662136,1.99375319,85.05,85.015,3.70094422]
[1771371662334,1.99375319,85.03,85.012,14.57369872]
[1771371662539,1.67196266,85.039,85.003,3.70094422]
[1771371662840,1.67196266,85.039,85.004,10.5934]
[1771371665136,10.5896,85.036,85.005,3.70094422]
[1771371666543,1.99375319,85.06,85.011,3.70094422]
[1771371666742,1.6635348,85.059,85.013,3.70094422]
[1771371667633,10.5871,85.056,85.017,10.5918]
[1771371667932,12.32158228,85.056,85.017,3.70094422]
[1771371668539,1.73448228,85.056,85.018,3.70094422]
[1771371669635,1.73448228,85.056,85.019,10.5916]
[1771371670437,1.73448228,85.056,85.02,3.70094422]
[1771371670838,10.5872,85.055,85.02,3.70094422]
[1771371671036,1.7322457,85.054,85.02,3.70094422]
[1771371672445,1.99162547,85.05,85.02,3.70094422]
[1771371672744,10.5867,85.059,85.02,3.70094422]
[1771371673339,12.33098324,85.059,85.02,3.70094422]
[1771371673640,1.74428324,85.058,85.02,3.70094422]
[1771371675742,1.76231783,85.054,85.02,3.70094422]
[1771371676640,1.99162547,85.05,85.02,3.70094422]
[1771371680944,1.75327285,85.066,85.02,3.70094422]
[1771371681245,1.99162547,85.07,85.028,3.86069816]
[1771371682148,1.99162547,85.07,85.02,1.99162547]
[1771371682149,1.76153429,85.049,85.018,3.86069816]
[1771371682347,21.1646,85.095,85.005,3.86069816]
[1771371682348,1.76153429,85.039,85.005,3.86069816]
[1771371684246,1.99162547,85.03,85.003,14.57369872]
[1771371684451,1.72370243,85.029,84.994,3.86069816]
[1771371684650,1.99162547,85.03,84.994,3.86069816]
[1771371684950,1.99162547,85.03,84.976,21.97868418]
[1771371684951,1.99162547,85.03,84.997,3.86069816]
[1771371685444,3.7153279,85.03,84.997,3.86069816]
[1771371685648,1.99162547,85.02,84.997,3.86069816]
[1771371686844,10.5906,85.028,84.997,3.86069816]
[1771371690254,12.32532403,85.028,84.997,3.86069816]
[1771371698360,1.73819096,85.024,84.987,14.57369872]
[1771371698558,1.73819096,85.024,84.987,18.43439688]
[1771371699159,1.73819096,85.024,84.988,3.86069816]
[1771371699758,10.5914,85.022,84.988,3.86069816]
[1771371703361,1.73938697,85.017,84.988,3.86069816]
[1771371704161,1.99162547,85.01,84.978,3.86069816]
[1771371704361,1.73403026,85.009,84.978,3.86069816]
[1771371708270,10.5933,85.006,84.978,3.86069816]
[1771371712667,1.58222072,84.999,84.968,3.67605209]
[1771371713174,1.58222072,84.998,84.968,3.67605209]
[1771371716674,10.5944,84.997,84.968,3.67605209]
[1771371717375,12.16174686,84.997,84.968,3.67605209]
[1771371718274,1.56809667,84.996,84.968,3.67605209]
[1771371720678,10.5948,84.994,84.968,3.67605209]
[1771371721478,1.99162547,84.98,84.947,3.58874782]
[1771371721674,1.99162547,84.97,84.935,3.58874782]
[1771371722473,1.5228865,84.979,84.935,3.58874782]
[1771371722778,1.99162547,84.99,84.941,3.58874782]
[1771371723179,1.99162547,85.0,84.951,3.58874782]
[1771371724679,10.5949,84.993,84.951,3.58874782]
[1771371727483,10.5959,84.985,84.951,3.58874782]
[1771371731284,10.5944,84.997,84.951,3.58874782]
[1771371735888,1.32387008,84.997,84.955,3.86515515]
[1771371737489,1.32387008,84.997,84.959,3.86515515]
[1771371739284,1.32387008,84.997,84.962,14.46385515]
[1771371740388,1.32387008,84.997,84.963,3.86515515]
[1771371743091,1.34279292,84.987,84.955,14.57369872]
[1771371743289,1.34279292,84.987,84.953,74.12]
[1771371743685,1.34283571,84.979,84.953,74.12]
[1771371743991,1.34283571,84.979,84.939,3.86515515]
[1771371744386,1.34283571,84.977,84.939,3.86515515]
[1771371744787,1.34283571,84.969,84.937,74.12]
[1771371745192,1.34283571,84.966,84.937,74.12]
[1771371746387,74.54,85.007,84.937,74.12]
[1771371746388,1.31503605,85.005,84.938,3.86515515]
[1771371746593,1.31503605,85.005,84.961,3.86515515]
[1771371747694,10.5944,84.997,84.961,3.86515515]
[1771371752498,10.5944,84.997,84.962,3.86515515]
[1771371755198,10.5944,84.997,84.963,3.86515515]
[1771371755394,1.31503605,85.005,84.963,3.86515515]
[1771371755600,1.31503605,85.005,84.971,3.86515515]
[1771371755601,10.5935,85.005,84.971,3.86515515]
[1771371755800,3.32736149,85.004,84.961,14.57369872]
[1771371755996,268.99342067,85.028,84.961,74.12]
[1771371755997,3.32736149,84.999,84.961,74.12]
[1771371757800,3.32439121,84.986,84.961,74.12]
[1771371758397,3.32439121,84.984,84.961,74.12]
[1771371759101,3.32439121,84.984,84.948,14.57369872]
[1771371759302,3.32439121,84.984,84.949,14.57369872]
[1771371759502,3.32439121,84.984,84.949,18.43885387]
[1771371760202,10.5961,84.983,84.949,18.43885387]
[1771371760405,10.5961,84.983,84.949,3.86515515]
[1771371761101,268.99342067,85.028,84.938,14.57369872]
[1771371761102,3.32455516,84.976,84.938,14.57369872]
[1771371761313,3.32455516,84.969,84.932,18.43885387]
[1771371761504,3.32455516,84.969,84.932,3.86515515]
[1771371761898,10.599,84.961,84.932,3.86515515]
[1771371762407,3.33134222,84.968,84.932,3.86515515]
[1771371763799,10.5984,84.965,84.932,3.86515515]
[1771371767308,3.33134222,84.968,84.932,3.86515515]
[1771371774302,3.33134222,84.968,84.933,10.6023]
[1771371775612,3.33134222,84.968,84.933,14.26269859]
[1771371775911,3.33134222,84.968,84.934,3.66039859]
[1771371776112,21.1856,85.01,84.92,74.12]
[1771371776113,3.31037249,84.984,84.941,3.66039859]
[1771371777820,3.31220304,84.981,84.941,3.66039859]
[1771371778818,12.58965502,84.99,84.945,3.66039859]
[1771371779120,3.31220304,84.989,84.945,3.66039859]
[1771371780722,3.21068242,84.981,84.945,3.66039859]
[1771371782824,10.5929,85.009,84.933,14.57369872]
[1771371783022,3.1783798,85.016,84.971,3.66039859]
[1771371783725,10.5936,85.003,84.971,3.66039859]
[1771371785327,10.5947,84.995,84.971,3.66039859]
[1771371790231,10.5942,84.999,84.97,1.99389028]
[1771371790437,3.26096311,84.989,84.946,3.66039859]
[1771371791731,3.25557981,84.979,84.936,3.66039859]
[1771371794239,3.25557981,84.979,84.939,10.6016]
[1771371797345,3.25557981,84.979,84.936,3.66039859]
[1771371798044,3.24486053,84.977,84.936,3.66039859]
[1771371798344,1.99389028,84.97,84.936,3.66039859]
[1771371798942,1.99389028,84.98,84.936,3.66039859]
[1771371799144,3.24486053,84.99,84.936,3.66039859]
[1771371799145,5.23875081,84.99,84.937,3.94687737]
[1771371799346,3.24486053,84.989,84.938,3.94687737]
[1771371799541,1.99389028,84.98,84.938,3.94687737]
[1771371803249,10.5967,84.979,84.938,3.94687737]
[1771371804745,10.5967,84.979,84.937,10.6018]
[1771371804746,10.5967,84.979,84.941,3.94687737]
[1771371806544,10.5959,84.985,84.943,3.94687737]
[1771371806745,3.26840624,84.995,84.951,3.94687737]
[1771371807643,10.5954,84.989,84.952,10.6]
[1771371807849,10.5954,84.989,84.953,3.94687737]
[1771371809356,3.26840624,84.995,84.953,3.94687737]
[1771371812449,3.26840624,84.995,84.96,1.99389028]
[1771371812958,3.26840624,84.995,84.961,3.94687737]
[1771371822560,3.26840624,84.995,84.951,14.57369872]
[1771371822766,3.26666171,84.979,84.938,3.94687737]
[1771371823464,3.26666171,84.979,84.93,1.99389028]
[1771371823465,3.26666171,85.0,84.95,1.99389028]
[1771371823757,5.26055199,85.0,84.952,3.94687737]
[1771371823957,3.14240531,84.999,84.952,3.94687737]
[1771371824161,3.14240531,84.999,84.955,3.94687737]
[1771371830464,3.15844634,84.989,84.955,3.94687737]
[1771371830667,3.15844634,84.989,84.948,14.57369872]
[1771371830865,3.15844634,84.989,84.944,3.64859825]
[1771371831262,3.15844634,84.989,84.944,18.22229697]
[1771371831463,3.15844634,84.989,84.945,3.64859825]
[1771371831764,3.15353552,84.988,84.945,3.64859825]
[1771371834368,3.15353552,84.988,84.946,3.81724153]
[1771371834864,3.15353552,84.988,84.949,3.81724153]
[1771371840169,13.76987984,84.987,84.949,3.81724153]
[1771371840374,3.17417984,84.986,84.949,3.81724153]
[1771371841873,3.16948178,84.984,84.949,3.81724153]
[1771371842773,3.16948178,84.984,84.951,3.81724153]
[1771371847376,1.99389028,84.98,84.951,3.81724153]
[1771371849877,3.16948178,84.984,84.951,3.81724153]
[1771371858179,1.99501745,84.98,84.951,3.81724153]
[1771371862683,3.16948178,84.984,84.951,3.81724153]
[1771371868690,3.16600226,84.982,84.948,14.57369872]
[1771371868888,1.99501745,84.98,84.946,10.6007]
[1771371869189,3.16600226,84.979,84.946,10.6007]
[1771371871788,3.16600226,84.979,84.946,14.46623178]
[1771371875087,3.16600226,84.979,84.941,14.57369872]
[1771371876091,3.14268974,84.969,84.941,14.57369872]
[1771371876687,3.14268974,84.969,84.939,14.57369872]
[1771371877291,3.14268974,84.969,84.938,14.57369872]
[1771371879398,3.14268974,84.969,84.938,10.6017]
[1771371884394,1.99501745,84.97,84.939,3.93411435]
[1771371884599,1.99501745,84.98,84.942,3.93411435]
[1771371889406,3.02715957,84.979,84.942,3.93411435]
[1771371894811,3.02715957,84.979,84.949,3.68950584]
[1771371895009,2.94579055,84.989,84.949,3.68950584]
[1771371895411,2.94579055,84.989,84.96,3.68950584]
[1771371898610,2.96086341,85.017,84.96,3.68950584]
[1771371898811,3.91211617,85.081,85.011,1.93371092]
[1771371899008,3.91211617,85.094,85.051,1.93371092]
[1771371899209,3.91211617,85.094,85.055,1.93371092]
[1771371899512,3.91211617,85.106,85.061,1.93371092]
[1771371900418,3.91211617,85.106,85.032,14.57369872]
[1771371900419,1.99501745,85.09,85.048,74.3]
[1771371900619,1.99501745,85.09,85.047,1.94806407]
[1771371900620,3.91211617,85.089,85.047,1.94806407]
[1771371900915,237.00435216,85.146,85.051,1.94806407]
[1771371900916,5.90713362,85.1,85.051,1.94806407]
[1771371901117,1.99501745,85.09,85.051,1.94806407]
[1771371901413,3.91211617,85.089,85.051,1.94806407]
[1771371901619,1.99501745,85.1,85.051,1.94806407]
[1771371901920,3.91211617,85.099,85.051,1.94806407]
[1771371904015,1.99501745,85.09,85.051,1.94806407]
[1771371904723,5.90713362,85.09,85.051,1.94806407]
[1771371904921,3.91211617,85.089,85.051,1.94806407]
[1771371905516,1.99501745,85.09,85.051,1.94806407]
[1771371906118,3.91211617,85.089,85.051,1.94806407]
[1771371906523,1.99501745,85.08,85.051,1.94806407]
[1771371907321,1.99501745,85.09,85.051,1.94806407]
[1771371908727,3.91211617,85.089,85.051,1.94806407]
[1771371911930,10.5821,85.096,85.051,1.94806407]
[1771371912923,14.49421617,85.096,85.051,1.94806407]
[1771371913825,3.91211617,85.095,85.051,1.94806407]
[1771371914031,1.98995826,85.09,85.051,1.94806407]
[1771371914333,3.91211617,85.088,85.04,2.05560841]
[1771371915632,3.91211617,85.088,85.041,2.07995938]
[1771371915828,10.5836,85.084,85.041,2.07995938]
[1771371916032,3.87480706,85.083,85.041,2.07995938]
[1771371916834,10.5835,85.085,85.041,2.07995938]
[1771371917035,3.87480706,85.093,85.051,2.07995938]
[1771371917426,3.87480706,85.093,85.053,2.07995938]
[1771371917736,3.87480706,85.079,85.038,2.07995938]
[1771371918832,10.5849,85.074,85.038,2.07995938]
[1771371919633,10.5851,85.072,85.038,2.07995938]
[1771371920731,14.45990706,85.072,85.038,2.07995938]
[1771371920934,3.87480706,85.071,85.038,2.07995938]
[1771371921229,14.46060706,85.066,85.021,2.03126441]
[1771371921430,3.87480706,85.065,85.021,2.03126441]
[1771371921937,3.87480706,85.059,85.021,2.03126441]
[1771371923133,1.98995826,85.06,85.021,2.03126441]
[1771371923338,14.46050706,85.068,85.021,2.03126441]
[1771371923939,3.87480706,85.068,85.029,2.03744673]
[1771371924841,3.87480706,85.068,85.031,2.03744673]
[1771371934446,3.87480706,85.068,85.021,2.01206649]
[1771371935655,3.87480706,85.068,85.022,10.5912]
[1771371936354,3.87480706,85.068,85.02,1.98995826]
[1771371936355,3.87480706,85.068,85.027,10.5906]
[1771371936752,3.87480706,85.068,85.027,12.60462584]
[1771371936957,3.87480706,85.068,85.028,2.01402584]
[1771371939259,3.87480706,85.066,85.028,2.01402584]
[1771371939659,3.87480706,85.066,85.019,2.01656968]
[1771371940360,3.87480706,85.054,85.01,4.00652794]
[1771371940654,3.87480706,85.054,85.011,2.01656968]
[1771371940959,3.87480706,85.054,85.014,2.01656968]
[1771371941653,3.87480706,85.054,85.015,12.62740235]
[1771371942253,3.87480706,85.054,85.016,2.03530235]
[1771371943356,3.87480706,85.054,85.018,10.79969533]
[1771371944662,3.65203552,85.052,85.018,10.79969533]
[1771371946256,3.65203552,85.052,85.017,10.79969533]
[1771371946560,3.65203552,85.049,85.017,10.79969533]
[1771371947957,3.65203552,85.049,85.017,10.94803564]
[1771371948262,3.65203552,85.049,85.017,13.05330087]
[1771371948461,3.65203552,85.049,85.018,10.94803564]
[1771371950066,3.65203552,85.049,85.019,2.10744184]
[1771371952370,3.65203552,85.049,85.018,10.94803564]
[1771371953171,3.65203552,85.049,85.019,10.94803564]
[1771371955171,3.65203552,85.049,85.02,10.94803564]
[1771371956975,3.65203552,85.049,85.021,10.94803564]
[1771371957170,3.65203552,85.049,85.014,10.5922]
[1771371957771,3.65203552,85.049,85.015,2.15479138]
[1771371962372,21.1659,85.09,85.008,14.57369872]
[1771371962373,3.9159722,85.047,85.008,14.57369872]
[1771371962575,3.9159722,85.047,85.005,2.15497329]
[1771371963671,3.9159722,85.043,85.006,10.5932]
[1771371965280,3.9159722,85.04,85.006,10.5932]
[1771371965578,3.9159722,85.039,85.006,10.5932]
[1771371966779,10.5882,85.047,85.007,2.17706537]
[1771371966976,10.5882,85.047,85.008,2.17706537]
[1771371967177,3.9159722,85.051,85.013,2.17706537]
[1771371968781,3.9159722,85.051,85.016,2.17445412]
[1771371973582,3.9159722,85.062,85.021,2.16028631]
[1771371973984,3.9159722,85.062,85.032,2.16569832]
[1771371974185,1.99168689,85.08,85.032,2.16569832]
[1771371974685,12.57578689,85.08,85.034,3.6405877]
[1771371975390,10.5849,85.074,85.034,3.6405877]
[1771371976489,3.92835947,85.073,85.034,3.6405877]
[1771371976689,3.92835947,85.059,85.031,14.57369872]
[1771371976891,3.92835947,85.059,85.017,3.6405877]
[1771371977284,3.92835947,85.059,85.017,18.21428642]
[1771371977591,3.92835947,85.059,85.019,14.57369872]
[1771371978290,3.92835947,85.059,85.02,14.57369872]
[1771371979083,3.92835947,85.059,85.017,3.6405877]
[1771371979084,3.92835947,85.059,85.022,14.57369872]
[1771371980690,3.92835947,85.057,85.022,14.57369872]
[1771371980996,5.92004636,85.05,85.018,14.57369872]
[1771371981387,3.92835947,85.05,85.018,14.57369872]
[1771371983196,3.92835947,85.05,85.019,14.57369872]
[1771371983393,3.92835947,85.049,85.019,14.57369872]
[1771371983599,3.92835947,85.049,85.014,14.57369872]
[1771371984297,3.92835947,85.049,85.015,14.57369872]
[1771371985295,3.92835947,85.042,85.01,14.57369872]
[1771371985999,3.92835947,85.042,85.011,3.6405877]
[1771371988806,3.92835947,85.029,84.986,75.28]
[1771371989507,3.92835947,85.029,84.986,78.9205877]
[1771371989805,3.92835947,85.029,84.988,10.5954]
[1771371992410,10.5914,85.022,84.986,78.9205877]
[1771371992610,3.92835947,85.029,84.987,3.6405877]
[1771371993211,3.92835947,85.029,84.991,3.6405877]
[1771371994701,3.92835947,85.029,84.993,14.2354877]
[1771371995909,3.92835947,85.029,84.994,3.6405877]
[1771372002821,74.08,85.069,84.994,3.6405877]
[1771372002822,3.92835947,85.026,84.994,3.6405877]
[1771372005522,10.5907,85.027,84.986,75.28]
[1771372005523,3.82568645,85.021,84.986,75.28]
[1771372006935,3.82568645,85.034,84.987,3.91970232]
[1771372007117,3.82568645,85.034,84.991,3.91970232]
[1771372008219,14.41548645,85.034,84.991,14.51480232]
[1771372008424,14.41548645,85.034,84.992,3.91970232]
[1771372009127,10.5902,85.031,84.992,3.91970232]
[1771372009423,3.82568645,85.03,84.992,3.91970232]
[1771372014924,5.81737334,85.03,84.992,3.91970232]
[1771372015128,5.81737334,85.03,84.994,3.73968748]
[1771372015528,3.79437333,85.029,84.994,3.73968748]
[1771372015932,3.79437333,85.028,84.994,3.73968748]
[1771372016820,3.79437333,85.026,84.994,3.73968748]
[1771372017625,3.79437333,85.024,84.994,3.73968748]
[1771372021232,3.79437333,85.03,84.994,3.73968748]
[1771372021634,3.79437333,85.028,84.994,3.73968748]
[1771372021827,3.79437333,85.028,84.984,14.59806249]
[1771372022133,3.79437333,85.028,84.985,84.22]
[1771372022735,3.79437333,85.019,84.985,84.22]
[1771372029242,3.79437333,85.019,84.986,3.73968748]
[1771372029541,3.79437333,85.039,84.986,3.73968748]
[1771372029939,3.79437333,85.025,84.986,3.73968748]
[1771372030539,3.79437333,85.025,84.987,3.73968748]
[1771372032137,3.79437333,85.025,84.991,3.73968748]
[1771372032336,3.79437333,85.025,84.993,3.73968748]
[1771372033433,3.79437333,85.025,84.994,3.73968748]
[1771372034141,3.79437333,85.017,84.993,6.249e-05]
[1771372034442,3.79437333,85.017,84.976,74.1]
[1771372034737,3.79437333,85.017,84.969,3.73968748]
[1771372034738,3.71426074,85.009,84.969,3.73968748]
[1771372034942,3.71426074,85.009,84.97,76.32]
[1771372035440,3.71426074,85.019,84.971,3.88786336]
[1771372035742,3.71426074,85.019,84.973,3.88786336]
[1771372036142,3.71426074,85.019,84.972,87.9]
[1771372036143,3.71426074,85.019,84.984,3.88786336]
[1771372047755,3.71426074,85.016,84.975,74.1]
[1771372047952,3.71426074,85.016,84.975,77.98786336]